bitfinex/quotes_SOLUSD_20240825
["timestamp","ask_amount","ask_price","bid_price","bid_amount"]
[1724565154611,12.88539125,158.66,158.58,14.06881649]
[1724565154818,12.88539125,158.66,158.58,18.7161373]
[1724565155508,6.58259125,158.66,158.58,18.7161373]
[1724565155685,6.58259125,158.66,158.59,1.26062352]
[1724565162714,6.58259125,158.66,158.59,21.26062352]
[1724565163386,6.58259125,158.66,158.59,20.0]
[1724565165309,6.58259125,158.66,158.58,9.71543144]
[1724565165512,6.58259125,158.66,158.59,24.35325661]
[1724565165815,6.58259125,158.66,158.59,20.0]
[1724565166203,6.58259125,158.66,158.6,1.2605]
[1724565166414,6.58259125,158.66,158.61,1.26050235]
[1724565167094,6.58259125,158.66,158.59,20.0]
[1724565167800,6.58259125,158.66,158.59,24.64713705]
[1724565168312,9.71543144,158.65,158.57,16.1491]
[1724565168514,16.05803144,158.65,158.58,24.35354828]
[1724565168818,16.05803144,158.65,158.58,20.0]
[1724565169207,16.05803144,158.65,158.56,20.0]
[1724565169401,22.36153144,158.65,158.57,4.35355679]
[1724565169622,22.36153144,158.65,158.58,4.35355679]
[1724565169803,22.36153144,158.65,158.58,20.0]
[1724565170425,22.36153144,158.65,158.56,20.0]
[1724565170628,22.36153144,158.65,158.57,4.35358097]
[1724565171000,22.36153144,158.65,158.58,4.35358055]
[1724565171200,22.36153144,158.65,158.56,20.0]
[1724565171398,22.36153144,158.65,158.57,4.35358013]
[1724565171610,22.36153144,158.65,158.58,4.35358013]
[1724565171901,22.36153144,158.65,158.56,20.0]
[1724565172423,22.36153144,158.65,158.57,4.35368355]
[1724565172594,22.36153144,158.65,158.58,4.35368355]
[1724565172796,22.36153144,158.65,158.59,4.35368355]
[1724565173020,22.36153144,158.65,158.56,20.0]
[1724565173228,22.36153144,158.65,158.57,4.35368355]
[1724565173399,22.36153144,158.65,158.58,4.35368355]
[1724565173595,22.36153144,158.65,158.59,4.35368355]
[1724565173819,51.3036,158.64,158.56,20.0]
[1724565174007,51.3036,158.64,158.54,6.4456]
[1724565174008,6.3039,158.63,158.57,4.35395561]
[1724565174243,6.3039,158.63,158.58,4.35395561]
[1724565174529,6.3039,158.63,158.55,20.0]
[1724565174713,6.3039,158.63,158.56,4.3539821]
[1724565175025,16.01933144,158.63,158.57,4.3539821]
[1724565175228,16.01933144,158.63,158.54,9.71543144]
[1724565175549,6.3045,158.62,158.55,4.35417595]
[1724565175712,6.3045,158.62,158.56,4.35417595]
[1724565176035,9.71543144,158.61,158.53,0.8250997]
[1724565176213,9.71543144,158.61,158.54,4.35442806]
[1724565176415,9.71543144,158.61,158.55,4.35442806]
[1724565176615,9.71543144,158.61,158.53,0.8250997]
[1724565176819,9.71543144,158.61,158.54,4.3545527]
[1724565176820,6.0009,158.6,158.54,4.3545527]
[1724565177021,6.0009,158.6,158.53,0.8250997]
[1724565177222,6.0009,158.6,158.54,4.35504595]
[1724565177425,6.0009,158.6,158.53,0.8250997]
[1724565177620,6.0009,158.6,158.54,4.3550267]
[1724565177817,6.3056,158.59,158.53,0.8250997]
[1724565178014,6.0009,158.6,158.53,0.8250997]
[1724565178219,6.0009,158.6,158.54,5.6160388]
[1724565178548,6.0009,158.6,158.55,1.26113736]
[1724565179439,12.306,158.6,158.55,1.26113736]
[1724565179740,12.306,158.6,158.53,0.8250997]
[1724565179741,12.306,158.6,158.54,4.35479562]
[1724565179950,12.306,158.6,158.55,1.2611378]
[1724565180457,6.0009,158.6,158.55,1.2611378]
[1724565182530,6.0009,158.6,158.53,0.8250997]
[1724565183145,6.3059,158.59,158.53,5.17989524]
[1724565183433,6.3059,158.59,158.53,0.8250997]
[1724565183631,12.3061,158.6,158.53,5.17989524]
[1724565183824,12.3061,158.6,158.53,0.8250997]
[1724565184042,6.0009,158.6,158.53,5.17989524]
[1724565184239,12.3064,158.6,158.53,0.8250997]
[1724565187237,51.3055,158.59,158.53,0.8250997]
[1724565198541,63.8523,158.59,158.53,0.8250997]
[1724565209537,63.8523,158.59,158.54,1.57879764]
[1724565209733,63.8523,158.59,158.53,0.8250997]
[1724565210447,63.8523,158.59,158.54,1.57880649]
[1724565210658,6.3068,158.56,158.53,0.8250997]
[1724565216786,6.3064,158.57,158.53,0.8250997]
[1724565222961,73.56803144,158.59,158.53,0.8250997]
[1724565223161,63.8526,158.59,158.53,0.8250997]
[1724565223856,18.8526,158.59,158.53,0.8250997]
[1724565224652,12.5468,158.59,158.53,0.8250997]
[1724565224855,12.3061,158.6,158.53,0.8250997]
[1724565225083,6.0009,158.6,158.54,1.2612217]
[1724565225291,6.3047,158.62,158.53,10.54053114]
[1724565228787,6.3047,158.62,158.55,9.71543144]
[1724565231880,6.3047,158.62,158.56,1.26109339]
[1724565233574,6.3047,158.62,158.55,9.71543144]
[1724565239593,6.3047,158.62,158.56,1.26110392]
[1724565239977,6.3047,158.62,158.57,1.26110306]
[1724565240169,6.304,158.63,158.57,9.71543144]
[1724565246324,6.3043,158.62,158.56,15.0591]
[1724565262821,9.71543144,158.64,158.56,15.0591]
[1724565263024,6.3053,158.6,158.56,15.0591]
[1724565263338,16.02013144,158.62,158.56,15.0591]
[1724565264040,6.3049,158.61,158.56,15.0591]
[1724565265320,6.3052,158.6,158.56,15.0591]
[1724565270624,6.3052,158.6,158.56,15.0591]
[1724565272065,9.71543144,158.6,158.53,0.8250997]
[1724565272228,6.3063,158.58,158.53,0.8250997]
[1724565275442,6.3064,158.57,158.53,0.8250997]
[1724565277468,6.3064,158.57,158.54,1.57898598]
[1724565277644,6.3064,158.57,158.53,0.8250997]
[1724565277843,6.3064,158.57,158.54,1.57900466]
[1724565278065,6.3068,158.56,158.53,0.8250997]
[1724565278267,6.3071,158.55,158.53,0.8250997]
[1724565278439,6.3068,158.56,158.53,0.8250997]
[1724565301280,6.3063,158.57,158.53,0.8250997]
[1724565302897,6.3067,158.56,158.53,0.8250997]
[1724565306592,9.71543144,158.56,158.53,0.8250997]
[1724565306940,51.3072,158.55,158.53,0.8250997]
[1724565312602,9.71543144,158.56,158.53,0.8250997]
[1724565312603,6.3067,158.56,158.53,0.8250997]
[1724565316325,6.3059,158.58,158.53,0.8250997]
[1724565321819,6.3063,158.57,158.53,0.8250997]
[1724565322316,6.3068,158.56,158.53,0.8250997]
[1724565322720,51.3073,158.55,158.53,0.8250997]
[1724565327129,6.3075,158.54,158.53,0.8250997]
[1724565327315,51.3072,158.55,158.53,0.8250997]
[1724565331043,45.0,158.55,158.53,0.8250997]
[1724565331354,51.3068,158.56,158.53,0.8250997]
[1724565339350,6.3075,158.54,158.53,0.8250997]
[1724565339555,54.71543144,158.56,158.53,0.8250997]
[1724565339556,45.0,158.56,158.53,0.8250997]
[1724565341859,6.56873402,158.6,158.53,0.8250997]
[1724565342830,6.3059,158.59,158.53,0.8250997]
[1724565343142,45.0,158.58,158.53,0.8250997]
[1724565344936,51.3059,158.58,158.53,0.8250997]
[1724565345136,6.3063,158.57,158.53,0.8250997]
[1724565349734,6.3069,158.56,158.53,0.8250997]
[1724565351843,6.3064,158.57,158.53,0.8250997]
[1724565360248,6.3068,158.56,158.53,0.8250997]
[1724565360450,6.3072,158.55,158.53,0.8250997]
[1724565360868,6.3068,158.56,158.53,0.8250997]
[1724565362572,6.3072,158.55,158.53,0.8250997]
[1724565370464,6.3067,158.57,158.53,0.8250997]
[1724565375588,6.3068,158.56,158.53,0.8250997]
[1724565379582,45.0,158.58,158.53,0.8250997]
[1724565379789,45.0,158.57,158.53,0.8250997]
[1724565380083,54.71543144,158.59,158.53,0.8250997]
[1724565380655,6.3066,158.57,158.53,0.8250997]
[1724565384092,54.71543144,158.59,158.53,0.8250997]
[1724565384093,51.3058,158.59,158.53,0.8250997]
[1724565384510,51.3058,158.59,158.54,2.61214274]
[1724565384668,51.3058,158.59,158.53,0.8250997]
[1724565384874,51.3058,158.59,158.54,2.61203392]
[1724565385189,6.306,158.58,158.55,2.61183464]
[1724565385357,6.306,158.58,158.53,0.8250997]
[1724565385685,6.306,158.58,158.54,7.26154063]
[1724565385892,6.306,158.58,158.55,2.61176481]
[1724565386083,6.306,158.58,158.53,0.8250997]
[1724565386390,6.306,158.58,158.54,2.61177792]
[1724565386601,6.306,158.58,158.55,2.61177792]
[1724565386781,6.306,158.58,158.53,0.8250997]
[1724565386987,6.306,158.58,158.54,2.61184479]
[1724565387172,6.306,158.58,158.53,0.8250997]
[1724565387377,6.306,158.58,158.54,2.61184553]
[1724565387597,6.306,158.58,158.53,0.8250997]
[1724565387773,6.306,158.58,158.54,2.61182299]
[1724565387976,6.306,158.58,158.53,0.8250997]
[1724565388399,6.306,158.58,158.54,2.61182299]
[1724565388697,6.306,158.58,158.53,0.8250997]
[1724565388875,6.306,158.58,158.54,2.61182299]
[1724565389071,6.306,158.58,158.53,0.8250997]
[1724565389282,6.3064,158.57,158.54,2.61190708]
[1724565389513,6.3064,158.57,158.53,0.8250997]
[1724565390399,9.71543144,158.57,158.53,0.8250997]
[1724565391602,16.02173144,158.57,158.53,0.8250997]
[1724565392401,6.3063,158.57,158.53,0.8250997]
[1724565401407,6.306,158.58,158.53,0.8250997]
[1724565402488,51.3056,158.59,158.54,2.61189969]
[1724565402810,51.3056,158.59,158.53,0.8250997]
[1724565403013,51.3056,158.59,158.54,2.61189956]
[1724565403219,51.3056,158.59,158.53,0.8250997]
[1724565403389,51.3056,158.59,158.54,2.61188507]
[1724565403718,51.3056,158.59,158.53,0.8250997]
[1724565403886,51.3056,158.59,158.54,2.61177719]
[1724565404089,51.3056,158.59,158.53,0.8250997]
[1724565404288,51.3056,158.59,158.54,2.61178855]
[1724565404517,51.3056,158.59,158.53,0.8250997]
[1724565404707,51.3056,158.59,158.54,2.61177664]
[1724565404906,51.3056,158.59,158.53,0.8250997]
[1724565407590,7.40498317,158.66,158.54,25.08543144]
[1724565407799,9.71543144,158.64,158.54,25.08543144]
[1724565409135,45.0,158.63,158.54,25.08543144]
[1724565409432,6.3048,158.61,158.54,15.37]
[1724565409731,45.0,158.6,158.54,15.37]
[1724565410217,45.0,158.61,158.54,15.37]
[1724565410417,6.3052,158.6,158.54,15.37]
[1724565414433,45.0,158.61,158.55,6.0334]
[1724565414615,9.71543144,158.65,158.56,15.37]
[1724565414933,6.3043,158.63,158.56,16.6311759]
[1724565415128,6.3043,158.63,158.56,15.37]
[1724565419045,6.3044,158.62,158.56,15.37]
[1724565419225,45.0,158.61,158.56,15.37]
[1724565421341,51.3048,158.61,158.56,15.37]
[1724565425438,45.0,158.61,158.56,15.37]
[1724565426216,6.3048,158.61,158.56,15.37]
[1724565428441,51.3044,158.62,158.56,15.37]
[1724565429920,45.0,158.62,158.56,15.37]
[1724565430124,6.3044,158.62,158.56,15.37]
[1724565430347,45.0,158.61,158.56,15.37]
[1724565441747,61.02023144,158.61,158.56,15.37]
[1724565448457,51.3048,158.61,158.56,15.37]
[1724565451671,9.71543144,158.59,158.56,15.37]
[1724565451969,45.0,158.58,158.56,15.37]
[1724565457358,45.0,158.58,158.53,0.8250997]
[1724565458471,9.71543144,158.57,158.53,0.8250997]
[1724565458778,6.3071,158.55,158.53,0.8250997]
[1724565459156,51.3067,158.56,158.53,0.8250997]
[1724565459870,9.71543144,158.57,158.53,0.8250997]
[1724565460384,16.02173144,158.57,158.53,0.8250997]
[1724565466373,45.0,158.56,158.53,0.8250997]
[1724565469366,6.3053,158.6,158.53,0.8250997]
[1724565469580,9.71543144,158.6,158.53,0.8250997]
[1724565469793,6.3056,158.59,158.53,0.8250997]
[1724565470668,6.3052,158.6,158.53,0.8250997]
[1724565470992,6.3047,158.61,158.54,15.2901]
[1724565472197,45.0,158.6,158.54,15.2901]
[1724565477588,6.3044,158.62,158.55,21.823]
[1724565477783,45.0,158.61,158.55,21.823]
[1724565481105,45.0,158.61,158.55,23.08428407]
[1724565481908,45.0,158.62,158.55,23.08428407]
[1724565482985,45.0,158.62,158.55,21.823]
[1724565485494,45.0,158.62,158.55,23.08420613]
[1724565486112,45.0,158.62,158.55,21.823]
[1724565488004,45.0,158.62,158.55,23.08420618]
[1724565488206,51.3045,158.62,158.55,21.823]
[1724565490508,6.3047,158.61,158.55,21.823]
[1724565490680,45.0,158.6,158.55,21.823]
[1724565491196,45.0,158.61,158.55,21.823]
[1724565491624,6.3052,158.6,158.55,21.823]
[1724565498427,51.3047,158.61,158.55,21.823]
[1724565498603,9.71543144,158.64,158.55,31.53843144]
[1724565498800,45.0,158.63,158.55,31.53843144]
[1724565498999,51.304,158.63,158.55,31.53843144]
[1724565499200,6.304,158.63,158.55,31.53843144]
[1724565502138,6.304,158.63,158.56,16.1013]
[1724565502299,17.77041461,158.66,158.58,16.1013]
[1724565502614,45.0,158.65,158.58,17.36229618]
[1724565503502,51.3032,158.65,158.58,17.36229618]
[1724565504504,51.3032,158.65,158.59,6.1942]
[1724565506129,8.05498317,158.66,158.6,16.1013]
[1724565506426,14.35798317,158.66,158.6,16.1013]
[1724565507809,45.0,158.65,158.6,16.1013]
[1724565508934,6.303,158.66,158.6,16.1013]
[1724565509795,9.71543144,158.65,158.6,16.1013]
[1724565510005,9.71543144,158.63,158.6,16.1013]
[1724565510228,16.01933144,158.63,158.6,16.1013]
[1724565510529,9.71543144,158.63,158.6,16.1013]
[1724565515426,9.71543144,158.63,158.6,16.1013]
[1724565518618,6.3032,158.65,158.6,16.1013]
[1724565523212,6.3028,158.66,158.6,16.1013]
[1724565523537,16.01823144,158.66,158.6,16.1013]
[1724565526739,51.3032,158.65,158.6,16.1013]
[1724565531420,6.3036,158.64,158.6,16.1013]
[1724565531615,16.01903144,158.64,158.6,16.1013]
[1724565534437,9.71543144,158.62,158.6,16.1013]
[1724565536033,16.01973144,158.62,158.6,16.1013]
[1724565536321,16.01973144,158.62,158.56,16.181]
[1724565536322,45.0,158.61,158.56,16.181]
[1724565536543,9.71543144,158.6,158.56,16.181]
[1724565540545,45.0,158.61,158.56,16.181]
[1724565542534,16.01983144,158.62,158.56,16.181]
[1724565542723,16.01983144,158.62,158.56,17.44210016]
[1724565542930,9.71543144,158.62,158.56,17.44210016]
[1724565543142,9.71543144,158.62,158.57,2.6109789]
[1724565543347,16.01933144,158.64,158.56,16.181]
[1724565543552,16.01933144,158.64,158.57,2.61073575]
[1724565543765,16.01933144,158.64,158.58,2.61073575]
[1724565543941,16.01933144,158.64,158.56,16.181]
[1724565544138,16.01933144,158.64,158.57,2.61071863]
[1724565544342,6.3039,158.64,158.58,2.61071863]
[1724565544662,16.01863144,158.65,158.56,16.181]
[1724565544834,16.01863144,158.65,158.57,2.6107178]
[1724565545160,16.01863144,158.65,158.58,2.6107178]
[1724565545353,16.01863144,158.65,158.56,16.181]
[1724565545547,16.01863144,158.65,158.58,16.1994]
[1724565545860,9.71543144,158.65,158.59,1.26093166]
[1724565546046,9.71543144,158.65,158.6,6.3223]
[1724565551436,6.3028,158.66,158.6,6.3223]
[1724565551437,6.3023,158.68,158.6,6.3223]
[1724565551642,45.0,158.67,158.61,17.65756378]
[1724565551856,16.01773144,158.68,158.61,17.65756378]
[1724565552067,9.71543144,158.66,158.61,16.3968]
[1724565554052,16.01833144,158.66,158.61,16.3968]
[1724565575659,9.71543144,158.66,158.61,16.3968]
[1724565575979,9.71543144,158.66,158.62,1.26070379]
[1724565576574,7.595041,158.68,158.63,15.0758]
[1724565576885,6.56804986,158.69,158.64,7.60450037]
[1724565578369,6.56804986,158.69,158.65,1.26038684]
[1724565578682,6.56804986,158.69,158.64,6.3439]
[1724565578889,16.2834813,158.69,158.64,6.3439]
[1724565579971,6.56804986,158.69,158.64,6.3439]
[1724565580884,16.2834813,158.69,158.64,6.3439]
[1724565582891,22.5849813,158.69,158.64,7.60428664]
[1724565583082,12.86954986,158.69,158.64,6.3439]
[1724565583478,9.71543144,158.67,158.64,6.3439]
[1724565586278,6.3024,158.67,158.63,15.0758]
[1724565586485,9.71543144,158.66,158.63,15.0758]
[1724565587602,6.56804986,158.69,158.63,15.0758]
[1724565587897,9.71543144,158.68,158.63,15.0758]
[1724565588376,9.71543144,158.65,158.63,15.0758]
[1724565588877,6.56804986,158.69,158.6,6.3439]
[1724565589090,6.3039,158.64,158.6,6.3439]
[1724565589276,6.3039,158.64,158.59,15.0758]
[1724565589277,9.71543144,158.61,158.59,15.0758]
[1724565595612,9.71543144,158.63,158.59,15.0758]
[1724565604112,16.01943144,158.63,158.59,15.0758]
[1724565605688,6.304,158.63,158.59,15.0758]
[1724565605903,9.71543144,158.65,158.59,15.0758]
[1724565606392,16.01883144,158.65,158.59,15.0758]
[1724565610532,6.3036,158.64,158.59,15.0758]
[1724565610698,6.304,158.63,158.59,15.0758]
[1724565610901,16.01943144,158.63,158.59,15.0758]
[1724565614235,51.3044,158.62,158.59,15.0758]
[1724565614648,45.0,158.62,158.59,15.0758]
[1724565614807,16.01933144,158.63,158.59,15.0758]
[1724565615524,6.3039,158.63,158.59,15.0758]
[1724565617740,6.3036,158.64,158.59,15.0758]
[1724565623637,6.3041,158.63,158.59,15.0758]
[1724565623952,6.3046,158.62,158.56,6.3439]
[1724565624113,6.3048,158.61,158.56,6.3439]
[1724565624544,6.3044,158.62,158.56,6.3439]
[1724565628745,51.3048,158.61,158.56,6.3439]
[1724565634564,54.71543144,158.61,158.55,16.0579]
[1724565634840,6.306,158.58,158.55,16.0579]
[1724565635148,6.3056,158.59,158.55,16.0579]
[1724565637927,6.3052,158.6,158.55,16.0579]
[1724565646957,6.3058,158.59,158.55,16.0579]
[1724565647452,6.3061,158.58,158.55,16.0579]
[1724565647660,45.0,158.57,158.55,16.0579]
[1724565649336,6.3061,158.58,158.55,16.0579]
[1724565656270,6.3055,158.59,158.55,16.0579]
[1724565656575,45.0,158.58,158.55,16.0579]
[1724565657950,6.3055,158.59,158.55,16.0579]
[1724565658549,6.3059,158.58,158.55,16.0579]
[1724565658759,6.3057,158.59,158.55,16.0579]
[1724565665684,16.30943428,158.63,158.55,16.0579]
[1724565665848,65.0,158.62,158.55,16.0579]
[1724565667581,6.3051,158.61,158.55,16.0579]
[1724565667758,45.0,158.6,158.55,16.0579]
[1724565669959,51.3052,158.6,158.55,16.0579]
[1724565670665,45.0,158.6,158.55,16.0579]
[1724565670863,6.59400284,158.63,158.57,6.5509]
[1724565671056,51.3044,158.62,158.57,6.5509]
[1724565671451,51.3044,158.62,158.58,1.57867538]
[1724565671682,51.3044,158.62,158.57,6.5509]
[1724565672183,51.3044,158.62,158.58,1.57866635]
[1724565672485,51.3044,158.62,158.57,6.5509]
[1724565672675,51.3044,158.62,158.58,1.57866755]
[1724565672877,51.3044,158.62,158.57,6.5509]
[1724565673263,51.3044,158.62,158.58,1.57866755]
[1724565673459,51.3044,158.62,158.57,6.5509]
[1724565673784,6.3047,158.61,158.57,6.5509]
[1724565673957,45.0,158.6,158.57,6.5509]
[1724565675375,45.0,158.6,158.55,16.0579]
[1724565691590,16.30943428,158.63,158.56,1.261304]
[1724565691591,6.59400284,158.63,158.56,1.261304]
[1724565691790,7.17470767,158.68,158.57,31.90303144]
[1724565691988,5.53199525,158.7,158.6,15.7576]
[1724565691989,9.71543144,158.69,158.6,15.7576]
[1724565692193,16.89013911,158.69,158.6,15.7576]
[1724565692396,6.3031,158.66,158.6,15.7576]
[1724565693213,45.0,158.65,158.6,15.7576]
[1724565693795,51.3032,158.65,158.6,15.7576]
[1724565701226,61.01863144,158.65,158.6,15.7576]
[1724565704827,51.3032,158.65,158.6,15.7576]
[1724565720060,6.3036,158.64,158.6,15.7576]
[1724565731368,51.3032,158.65,158.6,15.7576]
[1724565733673,51.3032,158.65,158.61,1.57836917]
[1724565733965,51.3032,158.65,158.6,15.7576]
[1724565734268,6.302,158.68,158.63,16.3255]
[1724565735558,6.302,158.68,158.64,1.57814209]
[1724565735750,6.302,158.68,158.63,16.3255]
[1724565735949,6.302,158.68,158.64,1.57813109]
[1724565736171,6.302,158.68,158.63,16.3255]
[1724565736472,6.3016,158.69,158.64,1.57813124]
[1724565736646,6.3016,158.69,158.63,16.3255]
[1724565736975,6.3016,158.69,158.64,1.57813119]
[1724565737149,6.3016,158.69,158.63,16.3255]
[1724565737353,6.3016,158.69,158.64,1.57813119]
[1724565737556,6.3016,158.69,158.63,16.3255]
[1724565737759,6.3016,158.69,158.64,1.57813103]
[1724565737990,13.76548139,158.7,158.63,16.3255]
[1724565738194,6.59077372,158.7,158.63,16.3255]
[1724565738368,12.89197372,158.7,158.64,1.57810347]
[1724565738682,20.06668139,158.7,158.63,16.3255]
[1724565738882,20.06668139,158.7,158.64,1.57808432]
[1724565739082,20.06668139,158.7,158.63,16.3255]
[1724565739384,20.06668139,158.7,158.64,1.57809332]
[1724565739687,20.06668139,158.7,158.63,16.3255]
[1724565739889,20.06668139,158.7,158.64,1.57809332]
[1724565740056,20.06668139,158.7,158.63,16.3255]
[1724565740263,9.71543144,158.69,158.64,1.57809332]
[1724565740469,9.71543144,158.69,158.63,17.58608379]
[1724565740676,9.71543144,158.69,158.64,1.57809347]
[1724565740853,9.71543144,158.69,158.63,17.58608379]
[1724565741059,9.71543144,158.69,158.64,1.57809347]
[1724565741258,9.71543144,158.69,158.63,17.58608379]
[1724565741560,9.71543144,158.69,158.64,1.57809347]
[1724565741756,9.71543144,158.69,158.63,17.58608379]
[1724565741963,9.71543144,158.69,158.64,1.57809348]
[1724565742165,13.76548139,158.7,158.63,17.58608379]
[1724565742469,6.59077372,158.7,158.65,15.7479]
[1724565745481,6.59077372,158.7,158.66,6.6275]
[1724565748361,16.30620516,158.7,158.66,6.6275]
[1724565750565,6.59077372,158.7,158.66,6.6275]
[1724565752490,6.59077372,158.7,158.66,7.88786865]
[1724565754270,6.59077372,158.7,158.66,6.6275]
[1724565754970,16.30620516,158.7,158.66,6.6275]
[1724565755369,6.59077372,158.7,158.66,6.6275]
[1724565755787,16.30620516,158.7,158.66,6.6275]
[1724565756489,6.59077372,158.7,158.66,6.6275]
[1724565756664,16.30620516,158.7,158.66,6.6275]
[1724565758414,6.59077372,158.7,158.66,6.6275]
[1724565761219,9.71543144,158.67,158.66,6.6275]
[1724565763517,6.59077372,158.7,158.66,6.6275]
[1724565763717,9.71543144,158.69,158.66,6.6275]
[1724565766499,6.59077372,158.7,158.66,6.6275]
[1724565768824,6.59077372,158.7,158.66,7.8877406]
[1724565773213,6.59077372,158.7,158.66,6.6275]
[1724565773427,9.71543144,158.69,158.66,6.6275]
[1724565775512,9.71543144,158.69,158.65,15.7479]
[1724565775513,9.71543144,158.67,158.65,15.7479]
[1724565776143,16.01783144,158.67,158.65,15.7479]
[1724565778536,9.71543144,158.67,158.65,15.7479]
[1724565781144,12.89209609,158.69,158.65,15.7479]
[1724565781320,22.60752753,158.69,158.65,15.7479]
[1724565783515,6.302,158.68,158.65,15.7479]
[1724565783719,16.01743144,158.68,158.65,15.7479]
[1724565784050,9.71543144,158.68,158.65,15.7479]
[1724565785145,12.89209609,158.69,158.65,15.7479]
[1724565785329,22.60752753,158.69,158.65,15.7479]
[1724565789648,6.59049609,158.69,158.65,15.7479]
[1724565789953,6.59049609,158.69,158.66,1.578046]
[1724565790165,6.59049609,158.69,158.65,15.7479]
[1724565790332,6.59049609,158.69,158.66,1.578046]
[1724565790655,6.59049609,158.69,158.66,1.26036217]
[1724565791050,6.59049609,158.69,158.65,15.7479]
[1724565791245,6.59049609,158.69,158.66,1.57804545]
[1724565791433,6.59049609,158.69,158.65,15.7479]
[1724565791634,6.59049609,158.69,158.66,1.57804545]
[1724565791834,6.59049609,158.69,158.65,15.7479]
[1724565792058,6.59049609,158.69,158.66,1.57805446]
[1724565792256,6.59049609,158.69,158.65,15.7479]
[1724565792467,6.59049609,158.69,158.66,1.57805446]
[1724565792637,6.59049609,158.69,158.65,15.7479]
[1724565792957,6.59049609,158.69,158.66,1.57805421]
[1724565793258,6.59049609,158.69,158.67,1.26029291]
[1724565794258,6.59049609,158.69,158.68,1.26019858]
[1724565795258,6.59049609,158.69,158.68,16.64099858]
[1724565795459,6.59049609,158.69,158.68,15.3808]
[1724565799353,6.59049609,158.69,158.68,16.95873147]
[1724565801155,6.59049609,158.69,158.68,16.95873144]
[1724565801458,6.59049609,158.69,158.68,18.21884494]
[1724565801637,6.59049609,158.69,158.68,18.21883114]
[1724565802666,6.59049609,158.69,158.68,18.21880361]
[1724565803339,6.59049609,158.69,158.68,16.95870391]
[1724565808851,6.59049609,158.69,158.68,15.3808]
[1724565809051,6.59049609,158.69,158.68,16.95869342]
[1724565809253,6.59049609,158.69,158.68,15.3808]
[1724565809574,6.59049609,158.69,158.68,16.95869323]
[1724565810158,6.59049609,158.69,158.68,15.3808]
[1724565816193,6.59049609,158.69,158.64,16.2097]
[1724565816390,6.59049609,158.69,158.65,28.54023261]
[1724565816683,16.30592753,158.69,158.66,1.57791344]
[1724565816876,16.30592753,158.69,158.67,1.57795072]
[1724565817075,16.30592753,158.69,158.64,16.2097]
[1724565817265,16.30592753,158.69,158.65,4.18765119]
[1724565817474,16.30592753,158.69,158.66,1.57795044]
[1724565817680,16.30592753,158.69,158.67,1.57795044]
[1724565817893,16.30592753,158.69,158.64,16.2097]
[1724565818198,16.30592753,158.69,158.65,4.18762437]
[1724565818371,16.30592753,158.69,158.66,1.57794255]
[1724565818568,16.30592753,158.69,158.67,1.57794255]
[1724565818772,6.59049609,158.69,158.64,16.2097]
[1724565819001,6.59049609,158.69,158.65,4.18765447]
[1724565819296,6.59049609,158.69,158.66,1.5779514]
[1724565819495,6.59049609,158.69,158.67,1.5779514]
[1724565819699,6.59049609,158.69,158.64,16.2097]
[1724565819872,6.59049609,158.69,158.65,4.18756039]
[1724565820177,6.59049609,158.69,158.66,1.57792373]
[1724565820377,6.59049609,158.69,158.64,16.2097]
[1724565820589,6.59049609,158.69,158.65,1.57798848]
[1724565820793,6.59049609,158.69,158.66,1.57798848]
[1724565820975,6.59049609,158.69,158.64,16.2097]
[1724565821175,6.59049609,158.69,158.65,1.57798898]
[1724565821505,6.59049609,158.69,158.66,1.57798898]
[1724565821803,6.59049609,158.69,158.67,1.57798898]
[1724565821980,6.59049609,158.69,158.64,16.2097]
[1724565822307,6.59049609,158.69,158.65,8.54042295]
[1724565822603,6.59049609,158.69,158.66,1.57794514]
[1724565822895,6.59049609,158.69,158.67,1.57794514]
[1724565823071,6.59049609,158.69,158.64,16.2097]
[1724565823273,6.59049609,158.69,158.65,4.1876835]
[1724565823474,6.59049609,158.69,158.66,1.57795994]
[1724565823699,6.59049609,158.69,158.67,1.57795994]
[1724565823896,6.59049609,158.69,158.64,16.2097]
[1724565824104,6.59049609,158.69,158.65,8.54046411]
[1724565824398,6.59049609,158.69,158.66,1.57795119]